bitfinex/quotes_BTCUSD_20250830
["timestamp","ask_amount","ask_price","bid_price","bid_amount"]
[1756522154761,0.6393708,108120.0,108110.0,0.34951676]
[1756522155174,0.6393708,108120.0,108110.0,0.19307676]
[1756522155395,0.6393708,108120.0,108110.0,0.34947676]
[1756522156576,0.44514217,108120.0,108110.0,0.34947676]
[1756522156951,0.58993295,108130.0,108120.0,0.18497965]
[1756522157115,0.43357295,108130.0,108120.0,0.19005965]
[1756522157467,0.64008253,108130.0,108120.0,0.19005965]
[1756522160931,0.02194704,108130.0,108120.0,0.19005965]
[1756522161109,0.64008253,108130.0,108120.0,0.19005965]
[1756522162181,0.64008253,108130.0,108120.0,0.00508]
[1756522163297,0.79640253,108130.0,108120.0,0.00508]
[1756522167257,0.64008253,108130.0,108120.0,0.00508]
[1756522169373,0.63996672,108130.0,108120.0,0.00508]
[1756522169926,0.63996672,108130.0,108120.0,0.19005965]
[1756522171991,0.63996672,108130.0,108120.0,0.00508]
[1756522173308,0.79604672,108130.0,108120.0,0.00508]
[1756522173626,0.79604672,108130.0,108120.0,0.00307]
[1756522173864,0.18497965,108120.0,108110.0,0.18499676]
[1756522174162,0.18497965,108120.0,108100.0,0.3653004]
[1756522174163,1.05109393,108120.0,108100.0,0.35604455]
[1756522174368,0.6180539,108110.0,108100.0,0.51512455]
[1756522174576,0.6180539,108110.0,108100.0,0.51722455]
[1756522174753,0.43305714,108110.0,108100.0,0.51722455]
[1756522175322,0.43305714,108110.0,108100.0,0.44511025]
[1756522175802,0.43305714,108110.0,108100.0,0.44811025]
[1756522176008,0.43305714,108110.0,108100.0,0.45011025]
[1756522176445,0.6180539,108110.0,108100.0,0.29399787]
[1756522176643,0.6180539,108110.0,108100.0,0.45007787]
[1756522176858,0.43305714,108110.0,108100.0,0.45007787]
[1756522184557,0.21887146,108110.0,108100.0,0.45007787]
[1756522188107,0.21887146,108110.0,108100.0,0.37895787]
[1756522188417,0.61803679,108120.0,108110.0,0.18499676]
[1756522188575,1.05109393,108120.0,108110.0,0.18795676]
[1756522189263,0.86611428,108120.0,108110.0,0.19008676]
[1756522189486,0.2439637,108130.0,108110.0,0.19008676]
[1756522189681,0.67702084,108130.0,108120.0,0.15576]
[1756522190327,0.67702084,108130.0,108120.0,0.34073965]
[1756522190541,0.64921484,108130.0,108120.0,0.34609965]
[1756522198012,0.64921484,108130.0,108120.0,0.16108]
[1756522198214,0.64921484,108130.0,108120.0,0.15895]
[1756522198660,0.2161577,108130.0,108120.0,0.15895]
[1756522198844,0.64921484,108130.0,108120.0,0.15895]
[1756522200259,0.64921484,108130.0,108120.0,0.34605965]
[1756522200457,0.20690958,108130.0,108120.0,0.34605965]
[1756522200677,0.63996672,108130.0,108120.0,0.34605965]
[1756522202560,0.20690958,108130.0,108120.0,0.34605965]
[1756522202762,0.63996672,108130.0,108120.0,0.34605965]
[1756522203332,0.63996672,108130.0,108120.0,0.16108]
[1756522203657,0.63996672,108130.0,108120.0,0.15895]
[1756522203914,0.18499676,108110.0,108100.0,0.06873178]
[1756522204144,0.43305714,108110.0,108100.0,0.37176787]
[1756522204345,0.43305714,108110.0,108100.0,0.37389787]
[1756522204588,0.61804058,108120.0,108110.0,0.18499676]
[1756522204962,0.61804058,108120.0,108110.0,0.00323]
[1756522205528,0.61804058,108120.0,108110.0,0.1558]
[1756522205929,1.05109772,108120.0,108110.0,0.1578]
[1756522207452,1.05109772,108120.0,108110.0,0.1588]
[1756522208440,1.05109772,108120.0,108110.0,0.003]
[1756522208655,1.05109772,108120.0,108110.0,0.15876]
[1756522208993,1.05109772,108120.0,108110.0,0.15872]
[1756522210357,1.05109772,108120.0,108110.0,0.16195]
[1756522210555,0.18498344,108120.0,108110.0,0.34907676]
[1756522210767,0.61804058,108120.0,108110.0,0.34694676]
[1756522211181,0.61804058,108120.0,108110.0,0.16195]
[1756522212103,0.61804058,108120.0,108110.0,0.16191]
[1756522212516,0.61804058,108120.0,108110.0,0.16404]
[1756522213276,0.61804058,108120.0,108110.0,0.16408]
[1756522214927,1.05109772,108120.0,108110.0,0.15872]
[1756522217385,1.05109772,108120.0,108110.0,0.16195]
[1756522218772,1.05109772,108120.0,108110.0,0.16408]
[1756522225731,0.43305714,108120.0,108110.0,0.16408]
[1756522226054,0.61804058,108120.0,108110.0,0.16408]
[1756522227061,1.05109772,108120.0,108110.0,0.16408]
[1756522230075,1.05109772,108120.0,108110.0,0.16392]
[1756522230435,0.18498344,108120.0,108110.0,0.34891676]
[1756522230561,0.61804058,108120.0,108110.0,0.34891676]
[1756522230758,0.61804058,108120.0,108110.0,0.16392]
[1756522237283,0.61804058,108120.0,108110.0,0.16179]
[1756522237284,0.18498344,108120.0,108110.0,0.16179]
[1756522237418,1.05109772,108120.0,108110.0,0.16375]
[1756522237940,0.61804058,108120.0,108110.0,0.16375]
[1756522242058,0.18498344,108120.0,108110.0,0.16375]
[1756522242256,0.61804058,108120.0,108110.0,0.16375]
[1756522244254,0.64584558,108120.0,108110.0,0.16375]
[1756522250511,1.07890272,108120.0,108110.0,0.003]
[1756522250708,1.07890272,108120.0,108110.0,0.15848]
[1756522253361,1.07890272,108120.0,108110.0,0.16169]
[1756522255543,0.21278844,108120.0,108110.0,0.1637]
[1756522255795,0.64584558,108120.0,108110.0,0.1637]
[1756522264797,0.64584558,108120.0,108110.0,0.003]
[1756522265017,0.64584558,108120.0,108110.0,0.15848]
[1756522265446,1.07890272,108120.0,108110.0,0.15848]
[1756522265646,0.64584558,108120.0,108110.0,0.15848]
[1756522265859,0.64584558,108120.0,108110.0,0.16169]
[1756522266420,1.78135869,108120.0,108110.0,0.003]
[1756522266646,1.37877593,108120.0,108110.0,0.003]
[1756522267272,1.37877593,108120.0,108110.0,0.002]
[1756522268061,1.34830155,108120.0,108110.0,0.002]
[1756522268291,0.18499676,108110.0,108100.0,0.15568]
[1756522268490,0.6180539,108110.0,108100.0,0.15889]
[1756522268981,0.6458619,108110.0,108100.0,0.15889]
[1756522269486,0.6468619,108110.0,108100.0,0.15889]
[1756522269891,0.21380476,108110.0,108100.0,0.1609]
[1756522270097,0.21480476,108110.0,108100.0,0.1609]
[1756522270304,0.6478619,108110.0,108100.0,0.1609]
[1756522271681,0.6468619,108110.0,108100.0,0.1609]
[1756522271913,0.6458619,108110.0,108100.0,0.1609]
[1756522274489,0.21280476,108110.0,108100.0,0.1609]
[1756522275093,0.21280476,108110.0,108100.0,0.78128368]
[1756522275292,0.21280476,108110.0,108100.0,0.77897101]
[1756522275495,0.027808,108110.0,108100.0,0.77897101]
[1756522276927,0.027808,108110.0,108100.0,0.34591387]
[1756522277270,0.027808,108110.0,108100.0,0.77897101]
[1756522277444,0.027808,108110.0,108100.0,0.34591387]
[1756522277626,0.027808,108110.0,108100.0,0.77897101]
[1756522278232,0.027808,108110.0,108100.0,0.78197101]
[1756522279870,0.21280476,108110.0,108100.0,0.78197101]
[1756522283458,0.21280476,108110.0,108100.0,0.44127714]
[1756522283679,0.21280476,108110.0,108100.0,0.59699714]
[1756522283882,0.21280476,108110.0,108100.0,0.16394]
[1756522284059,0.21280476,108110.0,108100.0,0.16625267]
[1756522284247,0.21280476,108110.0,108100.0,0.16394]
[1756522284786,0.6458619,108110.0,108100.0,0.00822]
[1756522284993,0.6458619,108110.0,108100.0,0.16394]
[1756522287058,0.21280476,108110.0,108100.0,0.16394]
[1756522287319,0.6458619,108110.0,108100.0,0.16394]
[1756522288283,0.6458619,108110.0,108100.0,0.00822]
[1756522288484,0.6458619,108110.0,108100.0,0.15864]
[1756522288693,0.21280476,108110.0,108100.0,0.15864]
[1756522288889,0.6458619,108110.0,108100.0,0.15864]
[1756522290965,0.6458619,108110.0,108100.0,0.16175]
[1756522291278,0.6458619,108110.0,108100.0,0.1639]
[1756522292987,0.6458619,108110.0,108100.0,0.00826]
[1756522293193,0.6458619,108110.0,108100.0,0.16382]
[1756522293410,0.21280476,108110.0,108100.0,0.00826]
[1756522293611,0.21280476,108110.0,108100.0,0.16382]
[1756522293812,0.6458619,108110.0,108100.0,0.16382]
[1756522298921,0.43305714,108110.0,108100.0,0.16382]
[1756522299081,0.6180539,108110.0,108100.0,0.16382]
[1756522299280,0.6458609,108110.0,108100.0,0.16382]
[1756522299886,0.6458609,108110.0,108100.0,0.191627]
[1756522301476,0.6458609,108110.0,108100.0,0.37664087]
[1756522301747,0.18499676,108110.0,108100.0,0.37664087]
[1756522301954,0.6180539,108110.0,108100.0,0.37664087]
[1756522302328,0.6180539,108110.0,108100.0,0.191627]
[1756522305230,0.18499676,108110.0,108100.0,0.191627]
[1756522305456,0.6180539,108110.0,108100.0,0.191627]
[1756522307842,0.6180539,108110.0,108100.0,0.37664087]
[1756522308241,0.6180539,108110.0,108100.0,0.37564087]
[1756522308458,0.6180539,108110.0,108100.0,0.37364087]
[1756522308791,0.6180539,108110.0,108100.0,0.37564087]
[1756522309399,0.6180539,108110.0,108100.0,0.032917]
[1756522309600,0.6180539,108110.0,108100.0,0.189437]
[1756522310022,0.6180539,108110.0,108100.0,0.190467]
[1756522310433,0.6180539,108110.0,108100.0,0.192467]
[1756522310942,0.6180539,108110.0,108100.0,0.190467]
[1756522311152,0.6180539,108110.0,108100.0,0.191467]
[1756522311355,0.6180539,108110.0,108100.0,0.189467]
[1756522311761,0.6180539,108110.0,108100.0,0.190467]
[1756522317790,0.6180539,108110.0,108100.0,0.188437]
[1756522318794,0.6180539,108110.0,108100.0,0.190467]
[1756522324459,0.6180539,108110.0,108100.0,0.37548087]
[1756522328663,0.18498344,108120.0,108100.0,0.80853801]
[1756522328864,0.18498344,108120.0,108110.0,0.00534245]
[1756522328865,0.61804058,108120.0,108110.0,0.00534245]
[1756522329026,0.61804058,108120.0,108110.0,0.00737245]
[1756522329229,0.61804058,108120.0,108110.0,0.00506]
[1756522330027,0.18498344,108120.0,108110.0,0.00506]
[1756522330231,0.61804058,108120.0,108110.0,0.00506]
[1756522330570,0.61804058,108120.0,108110.0,0.00737245]
[1756522331519,0.61804058,108120.0,108110.0,0.16054]
[1756522331822,0.61804058,108120.0,108110.0,0.16285245]
[1756522332023,0.61804058,108120.0,108110.0,0.16385245]
[1756522332391,0.61804058,108120.0,108110.0,0.16154]
[1756522333709,0.61804058,108120.0,108110.0,0.16254]
[1756522333984,1.05109772,108120.0,108110.0,0.16254]
[1756522334521,1.05109772,108120.0,108110.0,0.15748]
[1756522335966,0.18498344,108120.0,108110.0,0.16254]
[1756522336193,0.61804058,108120.0,108110.0,0.16254]
[1756522337090,0.18498344,108120.0,108110.0,0.16254]
[1756522337311,0.61804058,108120.0,108110.0,0.16254]
[1756522338399,1.05109772,108120.0,108110.0,0.16051]
[1756522340169,1.20657772,108120.0,108110.0,0.16051]
[1756522340786,1.05109772,108120.0,108110.0,0.15748]
[1756522341003,1.05109772,108120.0,108110.0,0.16048]
[1756522341653,1.20657772,108120.0,108110.0,0.005]
[1756522341852,1.20657772,108120.0,108110.0,0.15748]
[1756522342620,1.20657772,108120.0,108110.0,0.16048]
[1756522345817,1.05109772,108120.0,108110.0,0.16048]
[1756522347691,1.05109772,108120.0,108110.0,0.16247]
[1756522349494,1.05109772,108120.0,108110.0,0.16048]
[1756522350979,0.61804058,108120.0,108110.0,0.16048]
[1756522351326,0.61804058,108120.0,108110.0,0.16247]
[1756522354873,0.61804058,108120.0,108110.0,0.16048]
[1756522355122,1.05109772,108120.0,108110.0,0.002]
[1756522355305,1.05109772,108120.0,108110.0,0.15744]
[1756522356567,1.20653772,108120.0,108110.0,0.002]
[1756522356979,1.23434372,108120.0,108110.0,0.002]
[1756522357489,1.23434372,108120.0,108110.0,0.001]
[1756522357849,0.18499676,108110.0,108100.0,0.15844]
[1756522358052,0.6180539,108110.0,108100.0,0.00499]
[1756522358254,0.18501387,108100.0,108090.0,0.10207124]
[1756522358478,0.18501387,108100.0,108090.0,0.15858524]
[1756522358479,1.05112815,108100.0,108090.0,0.15858524]
[1756522359043,1.05112815,108100.0,108090.0,0.16057524]
[1756522359831,1.20656815,108100.0,108090.0,0.00014524]
[1756522360004,1.63954816,108100.0,108090.0,0.00014524]
[1756522360382,1.66736016,108100.0,108090.0,0.00014524]
[1756522360764,1.66836016,108100.0,108090.0,0.00014524]
[1756522361390,1.66736016,108100.0,108090.0,0.00014524]
[1756522362698,2.65915244,108100.0,108090.0,0.00014524]
[1756522362905,2.68986507,108100.0,108090.0,0.00014524]
[1756522363934,7.69286507,108100.0,108090.0,0.00014524]
[1756522364136,7.69086507,108100.0,108090.0,0.00014524]
[1756522364345,7.68986507,108100.0,108090.0,0.00014524]
[1756522364520,7.69286507,108100.0,108090.0,0.00014524]
[1756522364881,7.53942507,108100.0,108090.0,0.00014524]
[1756522365082,7.69486507,108100.0,108090.0,0.00014524]
[1756522365473,7.26269811,108100.0,108090.0,0.00014524]
[1756522365675,7.10725811,108100.0,108090.0,0.00014524]
[1756522365862,7.26273811,108100.0,108090.0,0.00014524]
[1756522366206,7.26269811,108100.0,108090.0,0.00014524]
[1756522366903,7.10725811,108100.0,108090.0,0.00014524]
[1756522367259,7.26273811,108100.0,108090.0,0.00014524]
[1756522368220,7.28691009,108100.0,108090.0,0.00014524]
[1756522369341,6.83741009,108100.0,108090.0,0.00014524]
[1756522369555,6.84030626,108100.0,108090.0,0.00014524]
[1756522369756,6.68482632,108100.0,108090.0,0.00014524]
[1756522369967,6.84030632,108100.0,108090.0,0.00014524]
[1756522371456,6.81613434,108100.0,108090.0,0.00014524]
[1756522371653,6.66065434,108100.0,108090.0,0.00014524]
[1756522371873,6.81613434,108100.0,108090.0,0.00014524]
[1756522372214,6.69712539,108100.0,108090.0,0.00014524]
[1756522372443,6.26362316,108100.0,108090.0,0.00014524]
[1756522372648,6.26072693,108100.0,108090.0,0.00339524]
[1756522372875,6.53874916,108100.0,108090.0,0.00339524]
[1756522373034,6.26072693,108100.0,108090.0,0.00539524]
[1756522373554,6.10524693,108100.0,108090.0,0.00539524]
[1756522373750,6.26072693,108100.0,108090.0,0.00539524]
[1756522373962,6.26072693,108100.0,108090.0,0.00339524]
[1756522374301,6.69422916,108100.0,108090.0,0.00339524]
[1756522374512,6.26072693,108100.0,108090.0,0.00339524]
[1756522375526,6.26072693,108100.0,108090.0,0.00539524]
[1756522376446,6.26072693,108100.0,108090.0,0.00339524]
[1756522377412,6.69422916,108100.0,108090.0,0.00339524]
[1756522377640,6.69712519,108100.0,108090.0,0.00339524]
[1756522377832,5.83012073,108100.0,108090.0,0.00539524]
[1756522378040,6.26362296,108100.0,108090.0,0.00539524]
[1756522379650,6.69712519,108100.0,108090.0,0.00539524]
[1756522380068,6.01735706,108100.0,108090.0,0.00539524]
[1756522380360,6.20237093,108100.0,108090.0,0.00339524]
[1756522380564,6.20526683,108100.0,108090.0,0.00339524]
[1756522380795,6.20526683,108100.0,108090.0,0.00539524]
[1756522381176,6.20526686,108100.0,108090.0,0.00539524]
[1756522381766,6.63876909,108100.0,108090.0,0.00014524]
[1756522383269,6.65606571,108100.0,108090.0,0.00014524]
[1756522383844,5.63358209,108100.0,108090.0,0.00539524]
[1756522384055,1.20526686,108100.0,108090.0,0.00539524]
[1756522384516,0.75082581,108100.0,108090.0,0.00539524]
[1756522384702,1.0884521,108100.0,108090.0,0.00539524]
[1756522384912,0.8068081,108100.0,108090.0,0.00539524]
[1756522385731,0.21782587,108100.0,108090.0,0.00539524]
[1756522386056,0.8068081,108100.0,108090.0,0.00539524]
[1756522386831,0.37330587,108100.0,108090.0,0.00539524]
[1756522387035,0.19001387,108100.0,108090.0,0.00770812]
[1756522387240,0.005,108100.0,108090.0,0.19273911]
[1756522387485,0.005,108100.0,108090.0,0.19042623]
[1756522388279,0.003,108100.0,108090.0,0.19042623]
[1756522388467,0.61849899,108110.0,108090.0,0.19042623]
[1756522388675,0.77397899,108110.0,108100.0,0.00325]
[1756522388875,0.77397899,108110.0,108100.0,0.00525]
[1756522389698,0.77497899,108110.0,108100.0,0.00525]
[1756522389898,0.77697899,108110.0,108100.0,0.00525]
[1756522390145,0.7808743,108110.0,108100.0,0.00525]
[1756522390354,0.77697899,108110.0,108100.0,0.00525]
[1756522391341,0.62049899,108110.0,108100.0,0.00525]
[1756522391543,0.77697899,108110.0,108100.0,0.00525]
[1756522391741,0.77797899,108110.0,108100.0,0.00525]
[1756522391973,0.34447676,108110.0,108100.0,0.00525]
[1756522393920,0.18501387,108100.0,108090.0,0.00014524]
[1756522394127,0.18501387,108100.0,108090.0,0.61867846]
[1756522394328,0.34447676,108110.0,108090.0,0.62067846]
[1756522394541,0.34447676,108110.0,108100.0,0.00325]
[1756522394732,0.18799676,108110.0,108100.0,0.00525]
[1756522394932,0.34483676,108110.0,108100.0,0.00525]
[1756522395921,0.34183676,108110.0,108100.0,0.00525]
[1756522396122,0.34383676,108110.0,108100.0,0.00525]
[1756522396661,0.77533899,108110.0,108100.0,0.00525]
[1756522396866,0.34383676,108110.0,108100.0,0.00525]
[1756522397435,0.34483676,108110.0,108100.0,0.00525]
[1756522410300,0.18501387,108100.0,108090.0,0.00334524]
[1756522410718,0.18501387,108100.0,108090.0,0.00532524]
[1756522411490,0.18501387,108100.0,108090.0,0.19035623]
[1756522411728,0.18501387,108100.0,108090.0,0.62385846]
[1756522412405,0.18501387,108100.0,108090.0,0.43882747]
[1756522415035,0.18501387,108100.0,108090.0,0.00532524]
[1756522415165,0.18501387,108100.0,108090.0,0.43882747]
[1756522417262,0.18501387,108100.0,108090.0,0.00532524]
[1756522417498,0.18501387,108100.0,108090.0,0.43882747]
[1756522418356,0.18501387,108100.0,108090.0,0.46370503]
[1756522418565,0.18501387,108100.0,108090.0,0.43882747]
[1756522419958,0.18501387,108100.0,108090.0,0.00532524]
[1756522420165,0.18501387,108100.0,108090.0,0.43882747]
[1756522421427,0.18501387,108100.0,108090.0,0.00532524]
[1756522421599,0.18501387,108100.0,108090.0,0.43882747]
[1756522422043,0.18501387,108100.0,108090.0,0.16244524]
[1756522423699,0.18501387,108100.0,108090.0,0.00334524]
[1756522423896,0.18501387,108100.0,108090.0,0.00014524]
[1756522426116,0.18501387,108100.0,108090.0,0.00334524]
[1756522426748,0.18501387,108100.0,108090.0,0.00014524]
[1756522426928,0.6185161,108100.0,108090.0,0.00014524]
[1756522427466,6.07243493,108100.0,108090.0,0.00014524]
[1756522427675,6.07533071,108100.0,108090.0,0.00014524]
[1756522427843,6.13385834,108100.0,108090.0,0.00014524]
[1756522428051,6.1512221,108100.0,108090.0,0.00014524]
[1756522428204,6.15122277,108100.0,108090.0,0.00014524]
[1756522428407,6.15322277,108100.0,108090.0,0.00014524]
[1756522428726,6.15422277,108100.0,108090.0,0.00014524]
[1756522429324,6.13485857,108100.0,108090.0,0.00014524]
[1756522429534,6.13785857,108100.0,108090.0,0.00014524]
[1756522430086,6.29385857,108100.0,108090.0,0.00014524]
[1756522430240,6.38411489,108100.0,108090.0,0.00014524]
[1756522430736,6.38211489,108100.0,108090.0,0.00014524]
[1756522430938,6.38411489,108100.0,108090.0,0.00014524]
[1756522433198,6.29573857,108100.0,108090.0,0.00014524]
[1756522433400,6.29284256,108100.0,108090.0,0.00014524]
[1756522433743,6.26208993,108100.0,108090.0,0.00534524]
[1756522436499,6.26208993,108100.0,108090.0,0.00337524]
[1756522438467,6.10524993,108100.0,108090.0,0.00337524]
[1756522438669,6.26196993,108100.0,108090.0,0.00534524]
[1756522439030,6.10524993,108100.0,108090.0,0.00534524]
[1756522439251,6.26196993,108100.0,108090.0,0.00534524]
[1756522440795,1.26196993,108100.0,108090.0,0.00534524]
[1756522441082,0.65080888,108100.0,108090.0,0.00534524]
[1756522441290,0.80748888,108100.0,108090.0,0.00534524]
[1756522445727,0.80732888,108100.0,108090.0,0.00534524]
[1756522446431,0.80732888,108100.0,108090.0,0.00014524]
[1756522446798,0.80732888,108100.0,108090.0,0.00337524]
[1756522447023,1.24083111,108100.0,108090.0,0.00534524]
[1756522447393,0.80732888,108100.0,108090.0,0.00534524]
[1756522447602,1.24083111,108100.0,108090.0,0.00534524]
[1756522450569,1.24083111,108100.0,108090.0,0.00337524]
[1756522451246,1.24083111,108100.0,108090.0,0.00534524]
[1756522452864,0.80732888,108100.0,108090.0,0.00534524]
[1756522453064,1.24083111,108100.0,108090.0,0.00534524]
[1756522456379,1.24051111,108100.0,108090.0,0.00534524]
[1756522456934,1.24051111,108100.0,108090.0,0.00337524]
[1756522458182,1.24051111,108100.0,108090.0,0.00534524]
[1756522459877,1.24051111,108100.0,108090.0,0.00337524]
[1756522460293,1.24051111,108100.0,108090.0,0.00014524]
[1756522460711,1.33170321,108100.0,108090.0,0.00014524]
[1756522460927,1.24340697,108100.0,108090.0,0.00014524]
[1756522462802,1.26434579,108100.0,108090.0,0.00014524]
[1756522465092,1.06926154,108100.0,108090.0,0.00014524]
[1756522465300,1.25427541,108100.0,108090.0,0.00014524]
[1756522465508,1.25227541,108100.0,108090.0,0.00014524]
[1756522465864,1.25427541,108100.0,108090.0,0.00014524]
[1756522466467,0.82077318,108100.0,108090.0,0.00014524]
[1756522466671,1.25427541,108100.0,108090.0,0.00014524]
[1756522467193,1.25227541,108100.0,108090.0,0.00014524]
[1756522467554,1.25427541,108100.0,108090.0,0.00014524]
[1756522467949,1.25127541,108100.0,108090.0,0.00014524]
[1756522468366,1.25227541,108100.0,108090.0,0.00014524]
[1756522469153,1.25227545,108100.0,108090.0,0.00014524]
[1756522471432,1.68553474,108100.0,108090.0,0.00014524]
[1756522472427,1.35560512,108100.0,108090.0,0.00313524]
[1756522473276,1.35560512,108100.0,108090.0,0.00014524]
[1756522474517,6.35560512,108100.0,108090.0,0.00014524]
[1756522474715,6.92549931,108100.0,108090.0,0.00014524]
[1756522474994,6.49211855,108100.0,108090.0,0.00014524]
[1756522477358,6.05884733,108100.0,108090.0,0.00014524]
[1756522479688,5.53674071,108100.0,108090.0,0.00014524]
[1756522479896,5.97022453,108100.0,108090.0,0.00014524]
[1756522481031,6.31022453,108100.0,108090.0,0.00014524]
[1756522481333,6.31022453,108100.0,108090.0,1.29e-06]
[1756522481529,0.1850606,108080.0,108060.0,0.26286397]
[1756522481716,0.18506523,108070.0,108060.0,0.26334169]
[1756522481866,0.18506523,108070.0,108060.0,0.29115769]
[1756522482067,0.18506523,108070.0,108060.0,0.29318769]
[1756522482912,0.18506523,108070.0,108060.0,0.22465897]
[1756522483428,0.18506523,108070.0,108060.0,0.22565897]
[1756522483655,0.18506523,108070.0,108060.0,0.66113927]
[1756522483960,0.34102523,108070.0,108060.0,0.03731372]
[1756522484754,0.34102523,108070.0,108060.0,0.03531372]
[1756522485149,0.34102523,108070.0,108060.0,0.22039608]
[1756522485344,0.1564,108070.0,108060.0,0.22039608]
[1756522485559,0.1564,108070.0,108060.0,0.65688638]
[1756522485890,0.18506523,108070.0,108060.0,0.65688638]
[1756522486918,0.18506523,108070.0,108060.0,0.22339608]
[1756522487122,0.18506523,108070.0,108060.0,0.65688638]
[1756522488325,0.18506523,108070.0,108060.0,0.22339608]
[1756522488556,0.18506523,108070.0,108060.0,0.65688638]
[1756522488857,0.18506523,108070.0,108060.0,0.03831372]
[1756522489875,0.61855553,108070.0,108060.0,0.03831372]
[1756522490104,0.62053553,108070.0,108060.0,0.00547772]
[1756522490859,0.62053553,108070.0,108060.0,0.00881772]
[1756522491045,0.62153553,108070.0,108060.0,0.00881772]
[1756522491258,0.62153553,108070.0,108060.0,0.00581772]
[1756522491660,0.62053553,108070.0,108060.0,0.00581772]
[1756522493942,0.77673553,108070.0,108060.0,0.00581772]
[1756522494277,0.77669553,108070.0,108060.0,0.00581772]
[1756522496062,0.62053553,108070.0,108060.0,0.00581772]
[1756522496264,0.77665553,108070.0,108060.0,0.00581772]
[1756522498639,0.62053553,108070.0,108060.0,0.00581772]
[1756522498839,0.77657553,108070.0,108060.0,0.00581772]
[1756522499380,0.77662747,108070.0,108060.0,0.00581772]
[1756522500735,0.62058747,108070.0,108060.0,0.00581772]
[1756522500954,0.77662747,108070.0,108060.0,0.00581772]
[1756522502033,0.34308523,108070.0,108060.0,0.43935996]
[1756522506523,0.77662747,108070.0,108060.0,0.00047772]
[1756522506776,0.90325999,108070.0,108060.0,0.00047772]
[1756522507657,0.18704523,108070.0,108060.0,0.43935996]
[1756522507847,0.34290523,108070.0,108060.0,0.8729022]
[1756522508067,0.34290523,108070.0,108060.0,0.00581772]
[1756522508198,0.34290523,108070.0,108060.0,0.8729022]
[1756522509039,0.34488523,108070.0,108060.0,0.43935996]
[1756522509562,0.34488523,108070.0,108060.0,0.00581772]
[1756522510906,0.34290523,108070.0,108060.0,0.43930749]
[1756522511311,0.18706523,108070.0,108060.0,0.00581772]
[1756522511534,0.34290523,108070.0,108060.0,0.00581772]
[1756522516255,0.34488523,108070.0,108060.0,0.00581772]
[1756522517509,0.34488523,108070.0,108060.0,0.00047772]
[1756522519601,0.43318155,108070.0,108060.0,0.00047772]
[1756522519807,0.34488523,108070.0,108060.0,0.00047772]
[1756522521805,0.34488523,108070.0,108060.0,0.00550772]
[1756522522166,0.18904523,108070.0,108060.0,0.00550772]
[1756522522370,0.34290523,108070.0,108060.0,0.43899749]
[1756522522781,0.34290523,108070.0,108060.0,0.00550772]
[1756522526138,0.34488523,108070.0,108060.0,0.00550772]
[1756522526945,0.34488523,108070.0,108060.0,0.00349772]
[1756522527460,0.34488523,108070.0,108060.0,0.00550772]
[1756522529098,0.34388523,108070.0,108060.0,0.00550772]
[1756522529486,0.34288523,108070.0,108060.0,0.00550772]
[1756522529909,0.34388523,108070.0,108060.0,0.00550772]
[1756522530262,0.34288523,108070.0,108060.0,0.00550772]
[1756522530882,0.34288523,108070.0,108060.0,0.00047772]
[1756522531124,0.776375,108070.0,108060.0,0.00047772]
[1756522531560,0.7764439,108070.0,108060.0,0.00047772]
[1756522533446,0.85221783,108070.0,108060.0,0.00047772]
[1756522534129,1.19221783,108070.0,108060.0,0.00047772]
[1756522534582,1.71875651,108070.0,108060.0,0.00047772]
[1756522534850,6.77084118,108070.0,108060.0,0.00047772]
[1756522535055,6.77184118,108070.0,108060.0,0.00047772]
[1756522535299,6.79966018,108070.0,108060.0,0.00047772]
[1756522535735,6.84477098,108070.0,108060.0,0.00047772]
[1756522535959,6.84577098,108070.0,108060.0,0.00047772]
[1756522536409,7.29936241,108070.0,108060.0,1e-08]
[1756522536634,6.92127823,108070.0,108060.0,1e-08]
[1756522536852,6.92327823,108070.0,108060.0,1e-08]
[1756522537325,6.92027823,108070.0,108060.0,1e-08]
[1756522537538,6.92076925,108070.0,108060.0,1e-08]
[1756522537758,6.92376925,108070.0,108060.0,1e-08]
[1756522538216,6.76992925,108070.0,108060.0,1e-08]
[1756522538458,6.88160224,108070.0,108060.0,1e-08]
[1756522538668,6.87309002,108070.0,108060.0,1e-08]
[1756522538888,6.87709002,108070.0,108060.0,1e-08]
[1756522539327,6.72125002,108070.0,108060.0,1e-08]
[1756522539530,6.87709002,108070.0,108060.0,1e-08]
[1756522542075,6.87704229,108070.0,108060.0,1e-08]
[1756522542294,6.87703227,108070.0,108060.0,1e-08]
[1756522543158,6.72119227,108070.0,108060.0,1e-08]
[1756522543610,6.87703227,108070.0,108060.0,1e-08]
[1756522544961,6.00942391,108070.0,108060.0,1e-08]
[1756522545161,6.87703227,108070.0,108060.0,1e-08]
[1756522546054,6.72119227,108070.0,108060.0,1e-08]
[1756522546265,6.87703227,108070.0,108060.0,1e-08]
[1756522549025,6.87702165,108070.0,108060.0,1e-08]
[1756522551158,6.87467165,108070.0,108060.0,1e-08]
[1756522551559,6.87702165,108070.0,108060.0,1e-08]
[1756522552451,6.8597084,108070.0,108060.0,1e-08]
[1756522552664,6.87702276,108070.0,108060.0,1e-08]
[1756522553671,6.87702304,108070.0,108060.0,1e-08]
[1756522554192,6.87467304,108070.0,108060.0,1e-08]
[1756522554391,6.82467304,108070.0,108060.0,1e-08]
[1756522559271,6.82458782,108070.0,108060.0,1e-08]
[1756522560684,6.74918389,108070.0,108060.0,0.00502001]
[1756522562031,6.74921826,108070.0,108060.0,0.00502001]
[1756522563109,6.29451787,108070.0,108060.0,0.00502001]
[1756522563992,6.10737536,108070.0,108060.0,0.00502001]
[1756522564205,6.26321536,108070.0,108060.0,0.00502001]
[1756522565551,5.67361379,108070.0,108060.0,0.00502001]
[1756522565773,1.17023535,108070.0,108060.0,0.00502001]
[1756522566203,1.23778212,108070.0,108060.0,0.00502001]
[1756522566614,1.1494858,108070.0,108060.0,0.00502001]
[1756522567963,1.1216668,108070.0,108060.0,0.00502001]
[1756522576588,0.68790523,108070.0,108060.0,0.00502001]
[1756522576801,1.1216668,108070.0,108060.0,0.00502001]
[1756522577222,1.1236468,108070.0,108060.0,0.00502001]
[1756522577468,1.19686827,108070.0,108060.0,0.00502001]
[1756522578320,1.19488827,108070.0,108060.0,0.00502001]
[1756522580769,1.1215868,108070.0,108060.0,0.00502001]
[1756522582307,0.68782523,108070.0,108060.0,0.00502001]
[1756522582570,1.1215868,108070.0,108060.0,0.00502001]
[1756522583224,0.59652157,108070.0,108060.0,0.00502001]
[1756522583592,0.7815868,108070.0,108060.0,0.00502001]
[1756522586922,0.19206523,108070.0,108060.0,0.00502001]
[1756522587129,0.34782523,108070.0,108060.0,0.43878158]
[1756522587340,0.19206523,108070.0,108060.0,0.00502001]
[1756522587533,0.34782523,108070.0,108060.0,0.00502001]
[1756522588135,0.34082523,108070.0,108060.0,0.4410951]